Cogmind - Beta 11 @@@ ROGUE MODE // 2022.03.28 @ 19:57:36 Player: Saddlefall Result: Destroyed by Y-45 Defender with Heavy Assault Rifle Performance ------------- Evolutions (2) 1000 Regions Visited (5) 1000 Robots Destroyed (112) 560 Value Destroyed (3329) 3329 Prototype IDs (5) 100 Alien Tech Used (0) 0 Bonus (352) 352 TOTAL SCORE: 6341 Bonus ------- High Alert Combat Kills 292 Follower Combat Kills 60 Cogmind --------- Core Integrity 0/550 Matter 300/300 Energy 280/280 System Corruption 10% Temperature Cool (0) Movement Treading (330) Ox2 Location -8/Materials Parts ------- > --- POWER (1) -------- Heavy Ion Engine > --- PROPULSION (4) --- Armored Treads Aluminum Leg > --- UTILITY (4) ------ Large Storage Unit Signal Interpreter Improved Targeting Computer Hardened Medium Armor Plating > --- WEAPON (2) ------- Advanced Beam Rifle Heavy Mace > --- INVENTORY (15) --- Improved Ion Engine Heavy Ion Engine Nuclear Core Aluminum Leg Huge Storage Unit Compact Battery (200) Hardened Light Armor Plating Beam Rifle High-powered Shotgun Enhanced Autogun Flak Cannon Advanced EMP Blaster Grenade Launcher Mini Grenade Launcher Peak State ------------ > --- POWER ------------ Light Nuclear Core > --- PROPULSION ------- Armored Treads Armored Treads Advanced Treads Armored Wheel > --- UTILITY ---------- Large Storage Unit Signal Interpreter Recoil Stabilizer Hardened Medium Armor Plating > --- WEAPON ----------- Advanced Beam Rifle Advanced Beam Rifle > --- INVENTORY -------- Improved Ion Engine Heavy Ion Engine Light Treads Armored Treads Huge Storage Unit Improved Targeting Computer Light Armor Plating Hardened Light Armor Plating Beam Rifle Pulse Rifle Advanced Beam Rifle Flak Cannon Grenade Launcher Mini Grenade Launcher Heavy Mace [Rating: 33] Favorites ----------- Power Ion Engine Engine Ion Engine Power Core Light Nuclear Core Propulsion Armored Treads Treads Armored Treads Leg Aluminum Leg Wheel Armored Wheel Flight Unit Flight Unit Utility Signal Interpreter Device Improved Heat Sink Storage Large Storage Unit Processor Signal Interpreter Protection Hardened Medium Armor Plating Weapon Improved EM Shotgun Energy Gun Improved EM Shotgun Ballistic Gun Enhanced Autogun Ballistic Cannon Light Cannon Launcher Grenade Launcher Impact Weapon Heavy Mace Build | -11 -10 -10 -9 -9 -8 ------- Run | Scr Mat Min Mat Sto Mat Slots Evolved 4 | . . . 2 . 2 Power . | . . . . . . Propulsion 2 | . . . 1 . 1 Utility 2 | . . . 1 . 1 Weapon . | . . . . . . Parts Attached 68 | . 4 8 13 7 36 Power 7 | . . . 2 2 3 Engine 6 | . . . 2 2 2 Core 1 | . . . . . 1 Reactor . | . . . . . . Propulsion 23 | . 2 5 4 . 12 Treads 15 | . . 2 4 . 9 Leg 1 | . . . . . 1 Wheel 6 | . 2 2 . . 2 Hover . | . . . . . . Flight 1 | . . 1 . . . Utility 14 | . 1 . 6 1 6 Device 3 | . . . 1 1 1 Storage 5 | . . . 5 . . Processor 2 | . 1 . . . 1 Hackware . | . . . . . . Protection 4 | . . . . . 4 Artifact . | . . . . . . Weapon 24 | . 1 3 1 4 15 Energy Gun 16 | . . 2 1 4 9 Energy Cannon . | . . . . . . Ballistic Gun 1 | . . . . . 1 Ballistic Cannon 1 | . 1 . . . . Launcher 3 | . . 1 . . 2 Special Weapon . | . . . . . . Impact Weapon 3 | . . . . . 3 Slashing Weapon . | . . . . . . Piercing Weapon . | . . . . . . Special Melee Weapon . | . . . . . . Unidentified Prototypes 5 | . . . . 2 3 Corrupted Parts 1 | . . . . . 1 System Corruption 6 | . . . . . 6 Parts Lost 24 | . . 2 . 2 20 Power 3 | . . . . 1 2 Propulsion 12 | . . 2 . . 10 Utility 4 | . . . . . 4 Weapon 5 | . . . . 1 4 Highest Loss Streak 4 | . . 2 . 1 4 To Critical Strikes . | . . . . . . Average Slot Usage (%) 97 | . 99 96 99 97 96 Engine 9 | . 14 14 11 10 5 Core 1 | . . . . . 2 Treads 25 | . . 11 32 33 26 Wheel 5 | . 27 12 . . 7 Device 8 | . . . 11 11 7 Storage 10 | . 14 14 11 11 9 Processor 11 | . 13 14 11 11 10 Protection 2 | . . . . . 8 Energy Gun 17 | . 14 13 22 20 14 Ballistic Cannon 1 | . 13 7 . . . Naked Turns . | . . . . . . Heaviest Build 94 | 14 15 16 94 35 44 Greatest Support 80 | 20 32 40 60 60 80 Greatest Overweight (x) 5 | . . 4 5 . 3 Average Overweight (x) . | . . . . . 2 Largest Inventory Capacity 25 | . 8 8 25 15 15 Average Capacity 13 | . 8 8 12 15 15 Most Carried 15 | . 8 8 15 15 15 Average Carried 12 | . 7 7 11 14 14 Final Capacity 15 | 8 8 8 15 15 15 Final Carried 15 | 6 8 8 15 15 14 Class Distribution -------------------- 87% | Mutant 12% | Scavenger-Mutant Dominant Class ---------------- Mutant | -10/Materials Mutant | -10/Mines Mutant | -9/Materials Mutant | -9/Storage Mutant | -8/Materials Resources | -11 -10 -10 -9 -9 -8 ----------- Run | Scr Mat Min Mat Sto Mat Matter Collected 1140 | 200 73 92 265 70 440 Remotely . | . . . . . . Salvage Created 4646 | . 52 95 698 1554 2247 Parts 240 | . 6 16 42 99 77 Haulers Intercepted 5 | . . . 1 1 3 Recyclers Shooed 3 | . . . 1 2 . Parts Field Recycled . | . . . . . . Retrieved Matter . | . . . . . . Parts Self-Destructed . | . . . . . . Prevented . | . . . . . . Kills | -11 -10 -10 -9 -9 -8 ------- Run | Scr Mat Min Mat Sto Mat Combat Hostiles Destroyed 83 | . 6 7 11 26 33 Melee 5 | . . . . . 5 Guns 52 | . 3 . 11 21 17 Cannons 6 | . 3 3 . . . AOE 10 | . . 4 . 4 2 Classes Destroyed 16 | . 1 1 4 5 5 Worker 10 | . . . 1 2 7 Builder 6 | . . . . 2 4 Tunneler 1 | . . . . . 1 Hauler 5 | . . . 1 1 3 Recycler 3 | . . 1 1 1 . Mechanic 1 | . . . . . 1 Watcher 3 | . . . . 2 1 Swarmer 13 | . 6 7 . . . Grunt 41 | . . . 5 16 20 Brawler 5 | . . . . 2 3 Duelist 2 | . . . . 1 1 Protector 1 | . . . . 1 . Sentry 17 | . . . 6 6 5 Specialist 2 | . . . . . 2 Hunter 1 | . . . . . 1 Heavy 1 | . . . . . 1 Best Kill Streak 6 | . 3 3 3 6 6 Combat Bots Only 5 | . 3 3 3 5 4 Max Kills in Single Turn 3 | . 1 3 1 3 3 Gunslinging 1 | . . . . . 1 Exploded 3 | . . 3 . 1 1 Melee 1 | . . . . . 1 Uniques/NPCs Destroyed . | . . . . . . Combat | -11 -10 -10 -9 -9 -8 -------- Run | Scr Mat Min Mat Sto Mat Damage Taken 5572 | . 261 122 288 1003 3898 Core 861 | . 64 30 44 159 564 Absorbed by Shields . | . . . . . . Regen/Repaired (Parts) 330 | . . . . 57 273 Core Remaining (%) 70 | 100 . 62 . 49 . Volleys Fired 223 | . 27 16 30 59 91 Largest 2 | . 2 2 2 2 2 Hottest 124 | . 85 85 108 108 124 Shots Fired 405 | . 50 29 60 112 154 Gun 354 | . 23 13 60 112 146 Cannon 40 | . 27 13 . . . Launcher 11 | . . 3 . . 8 Special . | . . . . . . Kinetic 47 | . 27 13 . . 7 Thermal 167 | . 23 13 30 5 96 Explosive 3 | . . 3 . . . Electromagnetic 188 | . . . 30 107 51 Robot Hit Streak 15 | . 3 6 14 12 15 Robot Miss Streak 5 | . 3 4 2 5 5 Penetration Max . | . . . . . . Secondary Targets 1 | . . . . . 1 Max Gunslinging Chain 1 | . . . . . 1 Shots Hit Robots 334 | . 25 12 49 92 156 Core Hits 186 | . 6 11 27 71 71 Critical Kills . | . . . . . . Critical Parts Destroyed 9 | . . . . . 9 Critical Strikes 17 | . 2 1 1 . 13 Burn 7 | . 2 . 1 . 4 Blast 1 | . . 1 . . . Smash 9 | . . . . . 9 Melee Attacks 59 | . . . . . 59 Impact 59 | . . . . . 59 Slashing . | . . . . . . Piercing . | . . . . . . Sneak Attacks 8 | . . . . . 8 Combat Hostiles . | . . . . . . Follow-up Attacks . | . . . . . . Damage Inflicted 8751 | . 384 358 776 2270 4963 Guns 4596 | . 190 74 752 1556 2024 Cannons 301 | . 194 107 . . . Explosions 1714 | . . 177 . 701 836 Melee 2103 | . . . . . 2103 Ramming 37 | . . . 24 13 . Kinetic 413 | . 194 107 . . 112 Thermal 2821 | . 190 74 356 767 1434 Explosive 177 | . . 177 . . . Electromagnetic 3200 | . . . 396 1490 1314 Impact 2103 | . . . . . 2103 Slashing . | . . . . . . Piercing . | . . . . . . Highest Corruption 10 | . . . . 3 10 Average Corruption 2 | . . . . 2 2 Corruption Purged . | . . . . . . Corruption Blocked . | . . . . . . Effects 27 | . . . . 7 20 Message Errors 9 | . . . . 2 7 Matter Fused 7 | . . . . 1 6 Heat Flow Errors 2 | . . . . . 2 Energy Discharges 2 | . . . . 1 1 Data Loss (minor) 3 | . . . . 1 2 Data Loss (major) 3 | . . . . 2 1 Alerts 1 | . . . . . 1 Overload Shots . | . . . . . . Overflow Damage 826 | . 5 . . . 821 Projectiles 5 | . 5 . . . . Explosions 37 | . . . . . 37 Melee 784 | . . . . . 784 Knockbacks 17 | . 6 3 . . 8 Impact 7 | . . . . . 7 Kinetic 8 | . 5 3 . . . Secondary 2 | . 1 . . . 1 Self-Inflicted Damage 194 | . . . . 149 45 Shots 6 | . . . . 5 1 Rammed 6 | . . . 2 4 . Targets Rammed 6 | . . . 2 4 . Kicked . | . . . . . . Crushed . | . . . . . . Highest Temperature 556 | . 240 135 29 63 556 Average Temperature 102 | . 128 66 10 21 118 Received Heat Transfer 2004 | . . . 120 363 1521 Effects 16 | . 1 . . . 15 Shutdowns 3 | . . . . . 3 Energy Bleed 4 | . . . . . 4 Interference 5 | . 1 . . . 4 Damage (major) 3 | . . . . . 3 Damage (core) 1 | . . . . . 1 Siege Activations . | . . . . . . Robots Corrupted 4 | . . . . 1 3 Combat Hostiles 4 | . . . . 1 3 Parts Fried 31 | . . . . 8 23 Impact Corruptions 22 | . . . . . 22 Robots Melted 2 | . . . . . 2 Combat Hostiles 2 | . . . . . 2 Parts Melted 11 | . 1 . 2 1 7 Heat Transferred 5950 | . 703 222 851 1136 3038 Parts Sabotaged . | . . . . . . Parts Stolen . | . . . . . . Parts Stripped . | . . . . . . Power Chain Reactions 12 | . . . . 6 6 Missiles Intercepted . | . . . . . . Alert | -11 -10 -10 -9 -9 -8 ------- Run | Scr Mat Min Mat Sto Mat Peak Influence 782 | . 217 264 223 621 782 Initial 214 | . . 16 102 27 214 Average 268 | . 108 83 124 369 378 Maximum Alert Level 3 | . 1 1 1 2 3 Low Security (%) 41 | . 83 97 90 14 2 Level 1 33 | . 16 2 9 32 63 Level 2 24 | . . . . 52 32 Level 3 . | . . . . . 1 Level 4 . | . . . . . . Level 5 . | . . . . . . High Security . | . . . . . . Max Security . | . . . . . . Squads Dispatched 14 | . 2 1 . 6 5 Investigation 1 | . . 1 . . . Extermination . | . . . . . . Reinforcement 8 | . 2 . . 2 4 Assault 3 | . . . . 2 1 Garrison 2 | . . . . 2 . Intercept . | . . . . . . Searches Triggered . | . . . . . . Construction Impeded . | . . . . . . Haulers Reinforced . | . . . . . . Active Scanning Responses . | . . . . . . Cargo Convoy Interrupts . | . . . . . . Stealth | -11 -10 -10 -9 -9 -8 --------- Run | Scr Mat Min Mat Sto Mat Distress Signals 13 | . . . 2 3 8 Communications Jammed . | . . . . . . Distress Signals . | . . . . . . Times Spotted 138 | . 15 8 18 34 63 Peak Tracking Total 6 | . 6 3 3 5 5 Tactical Retreats 12 | . . 1 . 3 8 Traps | -11 -10 -10 -9 -9 -8 ------- Run | Scr Mat Min Mat Sto Mat Traps Triggered 3 | . . . . 2 1 Indirectly . | . . . . . . Trap Hack Attempts . | . . . . . . Triggered . | . . . . . . Disarmed . | . . . . . . Reprogrammed . | . . . . . . Reused . | . . . . . . Traps Extracted . | . . . . . . Installed . | . . . . . . Triggered . | . . . . . . Machines | -11 -10 -10 -9 -9 -8 ---------- Run | Scr Mat Min Mat Sto Mat Machines Disabled 2 | . . . . . 2 Max in Single Turn 1 | . . . . . 1 Garrison Access 1 | . . . . 1 . Machines Sabotaged . | . . . . . . Garrisons Compromised . | . . . . . . Overloaded Fab Kills . | . . . . . . Hacking | -11 -10 -10 -9 -9 -8 --------- Run | Scr Mat Min Mat Sto Mat Machines Accessed 9 | . 3 1 1 2 2 Terminals 5 | . 3 . 1 . 1 Fabricators . | . . . . . . Repair Stations 2 | . . . . 1 1 Recycling Units . | . . . . . . Scanalyzers . | . . . . . . Garrison Access 1 | . . . . 1 . Total Hacks 25 | . 12 1 2 4 6 Successful 17 | . 8 1 1 3 4 Failed 8 | . 4 . 1 1 2 Catastrophic . | . . . . . . Database Lockouts . | . . . . . . Manual 1 | . 1 . . . . Terminals 18 | . 12 . 2 . 4 Fabricators . | . . . . . . Repair Stations 5 | . . . . 3 2 Recycling Units . | . . . . . . Scanalyzers . | . . . . . . Garrison Access 1 | . . . . 1 . Terminal Hacks 12 | . 8 1 1 . 2 Record 6 | . 5 . . . 1 Robot Analysis 1 | . . . . . 1 Open Door 1 | . . 1 . . . Terminal Index 1 | . 1 . . . . Locate Traps 1 | . 1 . . . . Hauler Manifests 2 | . 1 . 1 . . Fabricator Hacks . | . . . . . . Repair Station Hacks 4 | . . . . 2 2 Scan Component 2 | . . . . 1 1 Repair 2 | . . . . 1 1 Recycling Unit Hacks . | . . . . . . Scanalyzer . | . . . . . . Garrison Access Hacks 1 | . . . . 1 . Seal Access 1 | . . . . 1 . Unauthorized Hacks . | . . . . . . Terminals . | . . . . . . Fabricators . | . . . . . . Repair Stations . | . . . . . . Recycling Units . | . . . . . . Scanalyzers . | . . . . . . Garrison Access . | . . . . . . Data Cores Recovered . | . . . . . . Used . | . . . . . . Hacking Detections 5 | . 3 . 1 . 1 Full Trace Events 1 | . 1 . . . . Feedback Events . | . . . . . . Feedback Blocked . | . . . . . . Robot Schematics Acquired . | . . . . . . Robots Built . | . . . . . . Authchips . | . . . . . . Time . | . . . . . . Total Robot Build Rating . | . . . . . . Part Schematics Acquired . | . . . . . . Parts Built . | . . . . . . Authchips . | . . . . . . Time . | . . . . . . Total Part Build Rating . | . . . . . . Parts Repaired 2 | . . . . 1 1 Time 70 | . . . . 51 19 Parts Recycled . | . . . . . . Recycled Matter . | . . . . . . Retrieved Matter . | . . . . . . Retrieved Components . | . . . . . . Parts Scanalyzed . | . . . . . . Part Schematics Acquired . | . . . . . . Parts Damaged . | . . . . . . Bothacking | -11 -10 -10 -9 -9 -8 ------------ Run | Scr Mat Min Mat Sto Mat Used RIF Installer . | . . . . . . Robots Hacked . | . . . . . . Non-combat . | . . . . . . Combat . | . . . . . . Robot Hacks Applied . | . . . . . . Relay Couplers Released . | . . . . . . Fabnet Peak Effective % . | . . . . . . Robots Rewired . | . . . . . . Allies Hacked . | . . . . . . Hacks Repelled . | . . . . . . Allies | -11 -10 -10 -9 -9 -8 -------- Run | Scr Mat Min Mat Sto Mat Total Allies 2 | . . . . 2 . Largest Group 2 | . . . . 2 . Highest-Rated Group 62 | . . . . 62 . Highest-Rated Ally 31 | . . . . 31 . Total Orders . | . . . . . . Ally Attacks 10 | . . . . 10 . Total Damage 210 | . . . . 210 . Kills 2 | . . . . 2 . Allies Corrupted . | . . . . . . Allies Melted . | . . . . . . Intel | -11 -10 -10 -9 -9 -8 ------- Run | Scr Mat Min Mat Sto Mat Robot Analysis Total 1 | . . . . . 1 Derelict Logs Recovered . | . . . . . . Drone Launches . | . . . . . . Drone Recoveries . | . . . . . . Exploration | -11 -10 -10 -9 -9 -8 ------------- Run | Scr Mat Min Mat Sto Mat Turns Passed 4986 | . 465 338 1232 1242 1709 Spaces Moved 2367 | 1 352 204 593 492 725 Core 5 | . . 2 3 . . Treads 1314 | . . 64 569 492 189 Legs 9 | 1 8 . . . . Wheels 1037 | . 344 136 21 . 536 Hover . | . . . . . . Flight 2 | . . 2 . . . Fastest Speed 100 | 120 100 100 100 170 120 Average Speed 148 | 120 100 122 169 170 146 Slowest Speed 330 | 120 120 280 300 170 330 Overloaded Moves . | . . . . . . Propulsion Burnouts . | . . . . . . Robots Hopped . | . . . . . . Cave-ins Triggered . | . . . . . . Exploration Rate (%) 44 | 2 57 31 54 72 53 Regions Visited 5 Branch Regions 2 Pre-discovered Areas . | . . . . . . Known Exits Taken 4 | . 1 1 1 1 . Unknown Exits Taken 1 | 1 . . . . . Scrap Searched . | . . . . . . Spaces Dug 10 | . . 7 . . 3 Terrain Destroyed 78 | . . 26 . 25 27 Melee 3 | . . . . . 3 Projectile . | . . . . . . AOE 75 | . . 26 . 25 24 Terrain Rammed . | . . . . . . Walls Destroyed . | . . . . . . Machines Disabled . | . . . . . . Actions | -11 -10 -10 -9 -9 -8 --------- Run | Scr Mat Min Mat Sto Mat Total 3343 | . 412 263 763 786 1119 Wait 540 | . 27 30 101 208 174 Move 2362 | . 351 203 592 491 725 Hop . | . . . . . . Pick Up 36 | . 1 1 12 6 16 Fast Attach 26 | . 2 4 4 5 11 Attach 29 | . 1 2 2 2 22 Detach 17 | . 2 2 1 3 9 Swap 13 | . 1 2 7 . 3 Drop 32 | . . 3 12 8 9 Fire 223 | . 27 16 30 59 91 Melee 59 | . . . . . 59 Ram . | . . . . . . Kick . | . . . . . . Crush 6 | . . . 2 4 . Escape Stasis . | . . . . . . Rewire . | . . . . . . Trap . | . . . . . . Miscellaneous . | . . . . . . Route ------- -11/Scrapyard -10/Materials (discovered 2 exits: *Mat / *Min) -10/Mines (discovered 2 exits: *Mat x2) -9/Materials (discovered 4 exits: *Mat x2 / [*Min] / *Sto) -9/Storage -8/Materials (discovered 1 exit: *Fac) History --------- Turn | Location | Event 1 | -11/Scrapyard | Discovered new exit (range 0) 1 | -11/Scrapyard | Entered Materials 292 | -10/Materials | Discovered new exit (range 6) 302 | -10/Materials | Identified exit to Materials 304 | -10/Materials | Build established: Mutant 445 | -10/Materials | Discovered new exit (range 16) 465 | -10/Materials | Identified exit to Mines 466 | -10/Materials | Entered Mines 620 | -10/Mines | Met a Derelict shopkeep closing up shop 767 | -10/Mines | Discovered exit to Materials (range 15) 769 | -10/Mines | Discovered exit to Materials (range 15) 804 | -10/Mines | Entered Materials 804 | -9/Materials | Evolved 2 slots: Propulsion x1, Utility x1 1261 | -9/Materials | Discovered new exit (range 14) 1530 | -9/Materials | Discovered new exit (range 15) 1765 | -9/Materials | Discovered new exit (range 10) 1790 | -9/Materials | Identified exit to Storage 1931 | -9/Materials | Discovered new exit (range 16) 1955 | -9/Materials | Identified exit to Materials 2036 | -9/Materials | Entered Storage 2483 | -9/Storage | Met a pair of Derelict thieves 2525 | -9/Storage | Garrison activated, responded to threat 2817 | -9/Storage | Core integrity fell below 50% 2876 | -9/Storage | Repaired Imp. EM Shotgun 3072 | -9/Storage | Discovered exit to Materials (range 11) 3278 | -9/Storage | Entered Materials 3278 | -8/Materials | Evolved 2 slots: Propulsion x1, Utility x1 3534 | -8/Materials | Lost 4 parts (2n2w) 3570 | -8/Materials | Build established: Scavenger-Mutant 3756 | -8/Materials | Discovered new exit (range 8) 3763 | -8/Materials | Identified exit to Factory 3790 | -8/Materials | Repaired Arm. Treads 4151 | -8/Materials | Core integrity fell below 50% 4180 | -8/Materials | Build established: Mutant 4761 | -8/Materials | Lost 3 parts (1p1n1u) 4827 | -8/Materials | Core integrity fell below 20% 4853 | -8/Materials | Lost 4 parts (3n1u) 4878 | -8/Materials | First assault squad dispatched 4922 | -8/Materials | System corruption reached 10% 4987 | -8/Materials | Destroyed by Y-45 Defender with Heavy Assault Rifle Last Messages --------------- 04972_ Melee Analysis Suite fried. 04972_ K-01 Serf collects debris. 04972_ U-05 Engineer lays Concrete. 04972_ G-47 Trooper IFF system glitched. 04973_ K-01 Serf collects debris. 04973_ U-05 Engineer lays Concrete. 04975_ K-01 Serf collects debris. 04976_ Lgt. Treads destroyed. 04977_ K-01 Serf collects debris. 04981_ K-01 Serf destroyed. 04981_ G-47 Trooper suffers critical hit (Smash). 04981_ Destroyed Aluminum Leg. 04981_ Destroyed Lgt. Nuclear Core. 04981_ G-47 Trooper system corrupted by crushing effect. 04981_ G-47 Trooper knocked back. 04981_ Imp. Recalibrator fried. 04981_ M-28 Smith destroyed. 04981_ K-01 Serf collects debris. 04984_ Critical hit (Burn: +37). 04984_ K-01 Serf collects debris. Map ----- +----------------------------------------------------+ | ????# ## %[ #?????????????????????????????? | | ????# ## #?????????????????????????????? | | ????# ## #?????????????????????????????? | | ????# ## % % #?????????????????????????????? | | ????##########+###+##????????????????????????????? | | ??????????# % #????????????????????????????? | | ??????????# #????????????????????????????? | | ??????????# #????????????????????????????? | | ??????????# """ """ #????????????????????????????? | | ??????????# """ """ #????????????????????????????? | | ??????????# """ """ #????????????????????????????? | | ??????????# [*=% #????????????????????????????? | | ???#############/####?????????????#??????????????? | | ???# !!%%#####%% #????????????? #?"????????????? | | ???# """[!!/%%%% % #???????????? # "????????????? | | + """==[##### #???????????? + ?????????????? | | ? # """ #???# %]#??????????? %#??????????????? | | ???# #???# % #??????????#=%=#??????????????? | | ???#########???# #????#######% ##?????????????? | | ?????????#### ## ###########! #######???????? | | ???#! ! #% !%=|!% ?????? | | ???# """ "#% % * [=%! ?????? | | ??????????"???T#% %[ |!==% ?????? | | ????????????? "####"######+### ####### ??????? | | ???????????? ?# # %=%% #######?????????????? | | ???????????###??# # @%Y #???????????????????? | | ????????????????# # """k #???????????????????? | | ????????????????# # """ #???????????????????? | | ????????????????# ! # """ #???????????????????? | | ????????????????# !! # #???????????????????? | | ????????????????# !! ##+#####???????????????????? | | ????????????????# ## ????????????????????????? | | ????????????????# #??????????????????????????? | | ????????????????#######??????????????????????????? | | ?????????????????????????????????????????????????? | | ?????????????????????????????????????????????????? | | ?????????????????????????????????????????????????? | | ?????????????????????????????????????????????????? | | ?????????????????????????????????????????????????? | | ?????????????????????????????????????????????????? | | ?????????????????????????????????????????????????? | | ?????????????????????????????????????????????????? | | ?????????????????????????????????????????????????? | | ?????????????????????????????????????????????????? | | ?????????????????????????????????????????????????? | | ?????????????????????????????????????????????????? | | ?????????????????????????????????????????????????? | | ?????????????????????????????????????????????????? | | ?????????????????????????????????????????????????? | | ?????????????????????????????????????????????????? | +----------------------------------------------------+ Best States ------------- Heat Dissipation 45 Energy Generation 14 Energy Capacity 280 Matter Stores 300 Matter Capacity 300 Sight Range 16 Terrain Scan Density 10 Armor Coverage 225 Evasion (%) 55 Targeting Accuracy 6 Recoil Reduction 5 Item Schematics ----------------- None Robot Schematics ------------------ None Fabricated ------------ Nothing Alien Tech Used ----------------- None Achievements -------------- Part-time Excavator Challenges ------------ None Game ------ Seed NullEnergyMediator Manual? 0 Play Time 00:59:16 Cumulative 18.9 hours Start 2022.03.26 @ 20:18:05 End 2022.03.28 @ 19:57:36 Sessions 9 Manual Loads 0 Difficulty Rogue Special Mode None Game No. 26 Rogue 26 Adventurer 0 Explorer 0 Win Type - Total 0 Types 0/0/0/0/0/0/0/0/0 Lore% 13 Gallery% 23 Achievement% 16 Wizard Run 0 Options --------- ASCII 0 Keyboard 1 Movement Numpad Keybinds 0 Fullscreen 1 Font 24/Smallcaps Map View 76x50 Tactical HUD 1 Map Filters NONE Filters NONE Steam 1 RUN: 3ab169ed-c4fa-43db-b867-f1a4fc208b97